bitfinex/quotes_ETHUSD_20260110
["timestamp","ask_amount","ask_price","bid_price","bid_amount"]
[1768024459051,0.35991076,3086.6,3086.4,0.001]
[1768024459743,0.92277737,3086.8,3086.4,0.001]
[1768024459980,0.30405841,3086.7,3086.4,0.001]
[1768024460182,0.92277737,3086.8,3086.4,0.001]
[1768024460387,0.30405717,3086.7,3086.4,0.001]
[1768024460562,3.24032671,3086.9,3086.4,0.001]
[1768024460750,0.41631041,3086.7,3086.4,0.001]
[1768024464354,0.30407696,3086.6,3086.4,0.001]
[1768024464556,0.41631041,3086.7,3086.4,0.001]
[1768024464755,0.30407699,3086.6,3086.4,0.001]
[1768024464966,0.41631041,3086.7,3086.4,0.001]
[1768024465167,0.30407699,3086.6,3086.4,0.001]
[1768024465386,0.41631041,3086.7,3086.4,0.001]
[1768024465685,0.30407483,3086.6,3086.4,0.001]
[1768024465855,0.41631041,3086.7,3086.4,0.001]
[1768024466057,0.30407485,3086.6,3086.4,0.001]
[1768024466352,0.41631041,3086.7,3086.4,0.001]
[1768024466649,0.30407287,3086.6,3086.4,0.001]
[1768024466857,0.41631041,3086.7,3086.1,0.001]
[1768024467056,0.66967535,3086.6,3086.1,0.93105655]
[1768024467254,0.3656009,3086.6,3086.1,0.93105655]
[1768024468357,0.41631041,3086.7,3086.1,0.93105655]
[1768024468557,0.30405129,3086.6,3086.1,0.93105655]
[1768024468753,0.41631041,3086.7,3086.1,0.93105655]
[1768024469057,0.30405135,3086.6,3086.1,0.93105655]
[1768024469256,0.41631041,3086.7,3086.1,0.93105655]
[1768024469459,0.30403881,3086.6,3086.1,0.93105655]
[1768024469684,0.41631041,3086.7,3086.1,0.93105655]
[1768024469902,0.30403949,3086.6,3086.1,0.93105655]
[1768024470187,0.41631041,3086.7,3086.1,0.93105655]
[1768024470366,0.30403943,3086.6,3086.1,0.001]
[1768024470568,1.33908778,3086.7,3086.1,0.001]
[1768024470763,0.30403052,3086.6,3086.1,0.001]
[1768024470968,0.41631041,3086.7,3086.2,0.93005655]
[1768024471268,0.30403049,3086.6,3086.2,0.93005655]
[1768024471491,0.41631041,3086.7,3086.2,0.93005655]
[1768024471685,0.30402083,3086.6,3086.2,0.93005655]
[1768024471861,0.41631041,3086.7,3086.2,0.93005655]
[1768024472190,0.30402086,3086.6,3086.2,0.93005655]
[1768024472389,0.41631041,3086.7,3086.2,0.93005655]
[1768024472578,0.30401309,3086.6,3086.2,0.93005655]
[1768024472889,3.65603313,3086.7,3086.2,0.93005655]
[1768024473083,0.30401319,3086.6,3086.2,0.93005655]
[1768024473290,3.23972272,3086.7,3086.2,0.93005655]
[1768024473587,0.30400621,3086.6,3086.2,0.93005655]
[1768024473908,3.23972272,3086.7,3086.2,0.93005655]
[1768024474063,0.30400619,3086.6,3086.2,0.93005655]
[1768024474252,3.98000413,3086.7,3086.2,0.93005655]
[1768024474253,0.74028141,3086.7,3086.2,0.93005655]
[1768024474457,0.30400055,3086.6,3086.2,0.93005655]
[1768024474654,0.74028141,3086.7,3086.4,0.001]
[1768024474891,0.30400049,3086.6,3086.4,0.001]
[1768024475187,0.74028141,3086.7,3086.4,0.001]
[1768024475390,0.30400052,3086.6,3086.4,0.001]
[1768024475591,0.74028141,3086.7,3086.4,0.001]
[1768024475889,0.30399606,3086.6,3086.4,0.001]
[1768024476091,0.74028141,3086.7,3086.4,0.001]
[1768024476270,0.30399606,3086.6,3086.4,0.001]
[1768024476472,0.74028141,3086.7,3086.4,0.001]
[1768024476790,0.30399226,3086.6,3086.4,0.001]
[1768024476990,0.74028141,3086.7,3086.4,0.001]
[1768024477191,0.30399223,3086.6,3086.4,0.001]
[1768024477493,0.74028141,3086.7,3086.4,0.001]
[1768024477691,0.30398875,3086.6,3086.4,0.001]
[1768024477894,0.74028141,3086.7,3086.4,0.001]
[1768024478193,0.30398875,3086.6,3086.4,0.001]
[1768024478394,0.74028141,3086.7,3086.4,0.001]
[1768024478687,0.3039859,3086.6,3086.4,0.001]
[1768024478861,0.74028141,3086.7,3086.4,0.001]
[1768024479061,0.3039859,3086.6,3086.4,0.001]
[1768024479262,0.74028141,3086.7,3086.4,0.001]
[1768024479463,0.30398708,3086.6,3086.4,0.001]
[1768024479782,0.74028141,3086.7,3086.4,0.001]
[1768024479985,0.30398708,3086.6,3086.4,0.001]
[1768024480183,0.74028141,3086.7,3086.4,0.001]
[1768024480384,0.30398705,3086.6,3086.4,0.001]
[1768024480680,0.74028141,3086.7,3086.4,0.001]
[1768024480991,0.30398878,3086.6,3086.4,0.001]
[1768024481172,0.74028141,3086.7,3086.4,0.001]
[1768024481366,0.30398878,3086.6,3086.4,0.001]
[1768024481592,0.74028141,3086.7,3086.4,0.001]
[1768024481792,0.30399037,3086.6,3086.4,0.001]
[1768024481999,0.74028141,3086.7,3086.4,0.001]
[1768024482177,0.3039904,3086.6,3086.4,0.001]
[1768024482492,0.74028141,3086.7,3086.4,0.001]
[1768024482682,0.30399311,3086.6,3086.4,0.001]
[1768024482884,0.74028141,3086.7,3086.4,0.001]
[1768024483091,0.30399308,3086.6,3086.4,0.001]
[1768024483282,0.74028141,3086.7,3086.4,0.001]
[1768024483484,0.30399648,3086.6,3086.4,0.001]
[1768024483783,0.74028141,3086.7,3086.4,0.001]
[1768024484175,3.240346,3086.9,3086.4,0.001]
[1768024484380,0.30399057,3086.8,3086.4,0.001]
[1768024484573,0.30399057,3086.7,3086.4,0.001]
[1768024484772,3.240346,3086.9,3086.4,0.001]
[1768024484973,0.30399561,3086.8,3086.4,0.001]
[1768024485184,0.30399561,3086.7,3086.4,0.001]
[1768024485382,0.38013416,3086.8,3086.4,0.001]
[1768024485583,0.30400083,3086.7,3086.4,0.001]
[1768024485782,0.38013416,3086.8,3086.4,0.001]
[1768024485986,0.30400083,3086.7,3086.4,0.001]
[1768024486203,0.38013416,3086.8,3086.4,0.001]
[1768024486369,0.30400628,3086.7,3086.4,0.001]
[1768024486568,0.38013416,3086.8,3086.4,0.001]
[1768024486768,0.30400631,3086.7,3086.4,0.001]
[1768024486995,0.002,3086.5,3086.4,0.001]
[1768024506118,0.002,3086.5,3086.4,0.94219925]
[1768024513718,0.002,3086.5,3086.4,0.001]
[1768024514488,0.002,3086.5,3086.4,0.94219925]
[1768024526023,0.002,3086.5,3086.4,0.001]
[1768024593451,0.002,3086.8,3086.4,0.001]
[1768024593649,0.30405742,3086.7,3086.4,0.001]
[1768024593847,0.002,3086.8,3086.4,0.001]
[1768024594169,0.30405721,3086.7,3086.4,0.001]
[1768024594330,0.002,3086.8,3086.4,0.001]
[1768024594648,0.30405493,3086.7,3086.4,0.96630077]
[1768024594950,0.002,3086.8,3086.4,0.96630077]
[1768024595119,0.30405493,3086.7,3086.4,0.96630077]
[1768024595314,0.002,3086.8,3086.4,0.96630077]
[1768024595515,0.30405092,3086.7,3086.4,0.96630077]
[1768024595816,0.002,3086.8,3086.4,0.96630077]
[1768024596121,0.30405095,3086.7,3086.4,0.96630077]
[1768024596319,0.002,3086.8,3086.4,0.96630077]
[1768024596518,0.30404696,3086.7,3086.4,0.96630077]
[1768024596749,0.002,3086.8,3086.4,0.96630077]
[1768024596948,0.30404693,3086.7,3086.4,0.96630077]
[1768024597149,0.002,3086.8,3086.4,0.96630077]
[1768024597648,0.30404601,3086.7,3086.4,0.96630077]
[1768024597863,0.002,3086.8,3086.4,0.96630077]
[1768024598052,0.30403949,3086.7,3086.4,0.96630077]
[1768024598250,0.002,3086.8,3086.4,0.96630077]
[1768024598563,0.30403308,3086.7,3086.4,0.001]
[1768024598868,0.002,3086.8,3086.4,0.0334002]
[1768024599033,0.30403311,3086.7,3086.4,0.0334002]
[1768024599233,0.002,3086.8,3086.4,0.0334002]
[1768024599433,0.30403311,3086.7,3086.4,0.0334002]
[1768024599665,0.002,3086.8,3086.4,0.0334002]
[1768024599966,0.30402802,3086.7,3086.4,0.0334002]
[1768024600266,0.002,3086.8,3086.4,0.0334002]
[1768024600470,0.3040242,3086.7,3086.4,0.0334002]
[1768024600645,0.002,3086.8,3086.4,0.0334002]
[1768024600961,0.3040242,3086.7,3086.4,0.0334002]
[1768024601164,0.002,3086.8,3086.4,0.0334002]
[1768024601353,0.30402423,3086.7,3086.4,0.0334002]
[1768024601556,0.002,3086.8,3086.4,0.0334002]
[1768024601733,0.30402082,3086.7,3086.4,0.0334002]
[1768024601935,0.002,3086.8,3086.4,0.0334002]
[1768024603963,0.91718779,3086.9,3086.4,0.0334002]
[1768024604174,0.30396805,3086.8,3086.4,0.99870097]
[1768024604339,0.00080848,3086.9,3086.4,0.99870097]
[1768024604538,0.30395355,3086.8,3086.4,0.99870097]
[1768024604839,0.00080848,3086.9,3086.4,0.99870097]
[1768024605039,0.30395358,3086.8,3086.4,0.99870097]
[1768024605235,0.00080848,3086.9,3086.4,0.99870097]
[1768024605434,0.30394292,3086.8,3086.4,0.99870097]
[1768024605762,0.00080848,3086.9,3086.4,0.99870097]
[1768024605970,0.30394157,3086.8,3086.4,0.99870097]
[1768024606168,0.00080848,3086.9,3086.4,0.99870097]
[1768024606468,0.3039416,3086.8,3086.4,0.99870097]
[1768024606641,0.00080848,3086.9,3086.4,0.99870097]
[1768024606841,0.30393185,3086.8,3086.4,0.99870097]
[1768024607041,0.00080848,3086.9,3086.4,0.99870097]
[1768024607263,0.30393182,3086.8,3086.4,0.99870097]
[1768024607465,0.00080848,3086.9,3086.4,0.99870097]
[1768024607666,0.3039239,3086.8,3086.4,0.99870097]
[1768024607971,0.00080848,3086.9,3086.4,0.99870097]
[1768024608175,0.30392387,3086.8,3086.4,0.99870097]
[1768024608478,0.00080848,3086.9,3086.4,0.99870097]
[1768024608680,0.30391774,3086.8,3086.4,0.99870097]
[1768024608841,0.00080848,3086.9,3086.4,0.99870097]
[1768024609044,0.30391774,3086.8,3086.4,0.99870097]
[1768024609255,0.00080848,3086.9,3086.4,0.99870097]
[1768024609553,0.30391324,3086.8,3086.4,0.99870097]
[1768024609752,0.00080848,3086.9,3086.4,0.99870097]
[1768024609963,0.30391321,3086.8,3086.4,0.99870097]
[1768024610173,0.00080848,3086.9,3086.4,0.99870097]
[1768024610373,0.30391321,3086.8,3086.4,0.99870097]
[1768024610574,0.00080848,3086.9,3086.4,0.99870097]
[1768024610775,0.30390987,3086.8,3086.4,0.99870097]
[1768024611071,0.00080848,3086.9,3086.4,0.99870097]
[1768024611272,0.002,3087.3,3087.0,0.91249324]
[1768024611446,3.2386566,3087.7,3087.2,0.00086361]
[1768024611646,0.00086361,3087.6,3086.8,0.91249324]
[1768024611950,0.00086361,3087.6,3087.1,0.12960691]
[1768024613075,0.99355388,3087.5,3087.1,0.12960691]
[1768024616881,0.002,3087.3,3087.1,0.12960691]
[1768024630694,0.002,3087.3,3086.9,0.91249324]
[1768024631064,0.002,3087.3,3086.9,1.82498648]
[1768024634489,0.002,3087.3,3086.9,0.91249324]
[1768024639374,0.002,3087.3,3086.9,1.88178605]
[1768024641406,0.002,3087.3,3087.2,0.001]
[1768024644899,0.002,3087.3,3086.9,0.91249324]
[1768024649012,0.002,3087.3,3087.0,0.96929281]
[1768024649313,0.002,3087.3,3087.1,0.96929281]
[1768024649778,0.002,3087.3,3087.2,0.96929281]
[1768024656228,0.002,3087.3,3087.1,0.97195425]
[1768024658922,0.002,3087.3,3087.1,1.96608898]
[1768024661929,0.002,3087.3,3087.1,0.99413473]
[1768024679550,0.002,3087.3,3087.0,0.97195425]
[1768024687262,0.99335783,3087.3,3087.0,0.97195425]
[1768024687762,0.002,3087.3,3086.8,0.97633934]
[1768024688158,0.002,3087.3,3086.8,1.94830619]
[1768024688368,0.002,3087.3,3086.8,0.97633934]
[1768024688868,0.002,3087.3,3086.9,0.97196685]
[1768024691052,0.002,3087.3,3086.9,1.94830619]
[1768024691366,0.002,3087.3,3086.9,0.97633934]
[1768024700175,0.002,3087.3,3087.2,0.001]
[1768024704074,0.002,3087.3,3087.2,0.97733934]
[1768024704578,0.002,3087.3,3087.2,0.001]
[1768024722014,0.97876701,3087.3,3087.2,0.001]
[1768024726123,0.002,3087.3,3087.2,0.001]
[1768024726425,0.97876701,3087.3,3086.7,0.255]
[1768024729087,0.002,3087.3,3086.7,0.255]
[1768024732001,0.002,3087.3,3086.7,1.17382834]
[1768024733521,1.38290269,3087.3,3086.7,0.255]
[1768024733722,0.002,3087.3,3086.7,0.255]
[1768024733900,0.002,3087.3,3086.7,1.17382834]
[1768024735850,0.002,3087.3,3087.0,0.001]
[1768024737545,0.96113484,3087.3,3087.0,0.001]
[1768024738041,4.2002595,3087.3,3087.0,0.001]
[1768024738237,0.42002595,3087.2,3087.0,0.001]
[1768024738410,0.95913484,3087.1,3086.7,0.255]
[1768024739432,0.42002595,3087.2,3086.5,0.9196369]
[1768024741036,3.6592204,3087.2,3086.5,0.9196369]
[1768024742545,0.46203552,3087.1,3086.5,0.9196369]
[1768024742749,0.95913484,3087.0,3086.5,0.00080856]
[1768024742937,0.46203552,3087.1,3086.4,0.001]
[1768024742938,4.19951124,3086.9,3086.4,0.001]
[1768024743140,0.41995112,3086.8,3086.4,0.001]
[1768024745548,3.65958196,3086.8,3086.4,0.001]
[1768024745957,4.64925802,3086.8,3086.4,0.001]
[1768024746455,0.98967606,3086.7,3086.4,0.001]
[1768024746755,0.98967606,3086.7,3086.1,0.001]
[1768024746957,1.77856495,3086.6,3086.1,0.001]
[1768024747617,5.01838134,3086.6,3086.1,0.001]
[1768024750162,1.77856495,3086.6,3086.1,0.001]
[1768024750338,0.98967606,3086.5,3086.1,0.001]
[1768024751896,3.23989625,3086.6,3086.1,0.001]
[1768024752568,6.4797925,3086.6,3086.1,0.001]
[1768024752731,0.98967606,3086.5,3086.1,0.001]
[1768024752930,0.98967606,3086.5,3085.9,0.255]
[1768024753126,0.74694686,3086.4,3085.9,0.255]
[1768024753766,0.74694686,3086.4,3085.8,0.93636548]
[1768024754668,3.24012571,3086.3,3085.8,0.93636548]
[1768024755260,3.98700331,3086.4,3085.8,0.93636548]
[1768024759568,3.98700331,3086.4,3086.1,0.001]
[1768024759774,0.49766794,3086.3,3086.1,0.001]
[1768024761576,3.73780258,3086.3,3086.1,0.001]
[1768024761778,3.73780258,3086.3,3085.8,0.93636548]
[1768024762144,3.73780258,3086.3,3085.7,0.97235434]
[1768024762543,0.49766794,3086.3,3085.7,0.97235434]
[1768024762778,4.97666486,3086.4,3085.7,0.97235434]
[1768024763864,0.98967606,3086.3,3085.7,0.97235434]
[1768024764176,0.98967606,3086.3,3085.6,0.93717364]
[1768024766179,3.9869888,3086.4,3085.6,0.93717364]
[1768024771864,3.9869888,3086.4,3085.9,0.001]
[1768024772066,0.82186069,3086.3,3085.9,0.001]
[1768024772267,0.002,3086.1,3085.9,0.001]
[1768024773353,0.002,3086.1,3085.9,0.94391987]
[1768024776502,0.002,3086.1,3085.9,0.001]
[1768024777557,0.002,3086.4,3085.9,0.001]
[1768024777759,0.45028229,3086.4,3085.9,0.001]
[1768024779509,0.45028229,3086.4,3085.9,0.94391987]
[1768024781305,0.002,3086.4,3085.9,0.94391987]
[1768024784879,0.002,3086.1,3085.9,0.94391987]
[1768024785217,0.002,3086.4,3086.1,0.94291987]
[1768024785366,3.236356,3086.9,3086.5,0.00080864]
[1768024785566,3.98232005,3086.9,3086.5,0.00080864]
[1768024795296,3.98232005,3086.9,3086.5,0.94099924]
[1768024795501,3.236356,3086.9,3086.5,0.94099924]
[1768024796799,3.236356,3086.9,3086.8,0.001]
[1768024796996,6.478676,3087.1,3086.5,0.94099924]
[1768024797200,7.47418425,3087.1,3086.5,0.00080864]
[1768024797838,0.99550825,3087.0,3086.5,0.00080864]
[1768024799328,3.23949593,3086.9,3086.5,0.00080864]
[1768024802431,3.23949593,3086.9,3086.5,0.94099924]
[1768024803317,6.47868937,3087.1,3086.5,0.94099924]
[1768024806337,6.73336226,3087.2,3086.5,0.94099924]
[1768024809241,6.73336226,3087.2,3086.8,0.001]
[1768024809408,0.77308705,3087.1,3086.5,0.94099924]
[1768024809608,0.002,3086.9,3086.5,0.94099924]
[1768024814018,0.002,3086.9,3086.7,0.96845106]
[1768024821461,0.002,3086.9,3086.6,0.12961489]
[1768024822150,0.002,3086.9,3086.8,0.001]
[1768024824082,0.94097737,3086.9,3086.5,0.00080864]
[1768024825443,3.24149593,3086.9,3086.5,0.00080864]
[1768024825644,0.44354733,3086.8,3086.5,0.00080864]
[1768024827964,3.68315311,3086.8,3086.5,0.00080864]
[1768024829158,0.44354733,3086.8,3086.5,0.00080864]
[1768024832546,3.68315312,3086.8,3086.5,0.00080864]
[1768024834577,6.92275891,3086.8,3086.5,0.00080864]
[1768024834878,1.74268813,3086.7,3086.5,0.00080864]
[1768024835078,0.9547384,3086.6,3086.0,0.255]
[1768024835670,0.9547384,3086.6,3085.9,0.001]
[1768024836781,3.23991576,3086.5,3085.9,0.001]
[1768024836987,4.06215784,3086.5,3085.9,0.001]
[1768024837548,4.06215784,3086.5,3085.9,0.92874839]
[1768024838282,0.9547384,3086.4,3085.9,0.001]
[1768024842976,0.9547384,3086.7,3085.9,0.92874839]
[1768024843572,0.255,3086.8,3085.9,0.92874839]
[1768024843787,0.00280864,3086.9,3085.9,0.92874839]
[1768024845167,0.00280864,3086.9,3086.0,0.92774839]
[1768024845370,0.00280864,3086.9,3086.2,0.92774839]
[1768024848889,0.00280864,3086.9,3086.5,0.92874839]
[1768024849395,0.002,3086.6,3086.5,0.92874839]
[1768024862320,0.002,3086.6,3086.5,0.001]
[1768024866527,0.99291063,3086.6,3086.5,0.001]
[1768024866724,0.002,3086.6,3086.5,0.001]
[1768024870397,0.99291063,3086.6,3086.5,0.001]
[1768024873041,0.002,3086.6,3086.5,0.001]
[1768024881060,0.00280864,3086.9,3086.6,0.95659946]
[1768024885741,0.00280864,3086.9,3086.5,0.001]
[1768024885925,0.002,3086.6,3086.5,0.001]
[1768024894178,0.002,3086.6,3086.5,0.9134121]
[1768024894351,0.00280864,3086.9,3086.5,0.9134121]
[1768024897680,0.00280864,3086.9,3086.6,0.9124121]
[1768024920798,0.00280864,3086.9,3086.7,0.90496324]
[1768024928905,0.00280864,3086.9,3086.7,4.14466586]
[1768024929380,0.00280864,3086.9,3086.7,0.90496324]
[1768024930903,0.00280864,3086.9,3086.7,4.14465145]
[1768024931108,0.00168211,3087.6,3087.2,0.00086447]
[1768024931602,0.92721173,3087.6,3087.2,0.00086447]
[1768024933284,4.1659811,3087.6,3087.2,0.00086447]
[1768024935406,0.99038888,3087.5,3087.2,0.00086447]
[1768024936576,0.002,3087.3,3087.2,0.00086447]
[1768024941925,0.92552962,3087.2,3086.6,0.255]
[1768024942512,0.92552962,3087.2,3086.5,0.00180872]
[1768024943708,4.16473551,3087.2,3086.5,0.00180872]
[1768024943905,0.92552962,3087.1,3086.5,0.00180872]
[1768024948428,0.92552962,3087.1,3086.8,0.001]
[1768024948615,1.3741891,3087.1,3086.8,0.001]
[1768024956921,0.90026846,3087.0,3086.8,0.001]
[1768024958636,0.44865948,3087.1,3086.8,0.001]
[1768024962038,0.06685926,3087.3,3086.8,0.001]
[1768024962442,3.30594347,3087.3,3086.8,0.001]
[1768024965546,0.06685926,3087.3,3086.8,0.001]
[1768024971157,3.30594902,3087.3,3086.8,0.001]
[1768024973054,3.30594902,3087.3,3087.1,0.001]
[1768024973361,0.44612175,3087.2,3086.8,0.001]
[1768024980278,0.44612175,3087.2,3086.8,0.95306915]
[1768024981693,3.68530976,3087.2,3086.8,0.95306915]
[1768024982687,0.44612175,3087.2,3086.8,0.95306915]
[1768024982993,0.37521011,3087.1,3086.8,0.95306915]
[1768024985168,3.30596494,3087.3,3086.8,0.95306915]
[1768024985573,3.30596494,3087.3,3087.1,0.001]
[1768024985778,3.30596494,3087.3,3086.8,0.95306915]
[1768024986686,3.30596494,3087.3,3086.8,0.001]
[1768024990882,3.30596494,3087.3,3086.8,0.96895423]
[1768024991058,3.99243524,3087.3,3086.8,0.96895423]
[1768024993385,0.75332956,3087.3,3086.8,0.96895423]
[1768024993768,3.30594553,3087.3,3086.8,0.96895423]
[1768024997397,3.30594553,3087.3,3087.1,0.001]
[1768024997599,3.30594553,3087.3,3086.8,0.001]
[1768024997961,0.96358733,3087.2,3086.8,0.001]
[1768024999194,3.30594553,3087.3,3086.8,0.001]
[1768024999493,0.45245329,3087.2,3086.8,0.001]
[1768025002197,0.45245329,3087.2,3086.8,0.96895423]
[1768025007802,3.69163859,3087.2,3086.8,0.96895423]
[1768025008101,3.69163859,3087.2,3086.8,0.001]
[1768025009503,3.69163859,3087.2,3087.1,0.001]
[1768025009708,3.69163859,3087.2,3086.8,0.001]
[1768025011020,0.47220852,3087.1,3086.8,0.001]
[1768025011895,3.71150206,3087.1,3086.8,0.001]
[1768025014100,0.47220852,3087.1,3086.8,0.001]
[1768025015334,3.71149827,3087.1,3086.8,0.001]
[1768025018007,3.71149827,3087.1,3086.5,0.90431918]
[1768025021231,3.71149827,3087.1,3086.8,0.001]
[1768025021430,0.7403171,3087.0,3086.8,0.001]
[1768025022030,3.97974387,3087.0,3086.8,0.001]
[1768025035545,3.97971681,3087.0,3086.8,0.001]
[1768025040455,0.7403171,3087.0,3086.8,0.001]
[1768025041748,3.97972065,3087.0,3086.8,0.001]
[1768025042555,4.64912172,3086.9,3086.5,0.00180872]
[1768025043051,0.96418461,3086.8,3086.5,0.00180872]
[1768025043256,3.68493711,3086.9,3086.5,0.00180872]
[1768025044257,3.23954419,3086.9,3086.5,0.00180872]
[1768025049081,3.23939099,3087.0,3086.5,0.00180872]
[1768025049681,3.24133065,3087.1,3086.5,0.98051314]
[1768025051278,3.92156869,3087.1,3086.5,0.98051314]
[1768025057484,0.002,3086.8,3086.5,0.98051314]
[1768025081518,0.002,3086.8,3086.5,0.00180872]
[1768025099745,0.002,3086.8,3086.5,0.91986973]
[1768025101046,0.002,3087.1,3086.6,0.91806101]
[1768025101447,0.002,3087.1,3086.7,0.91806101]
[1768025102360,0.002,3087.3,3086.8,0.91806101]
[1768025102845,0.002,3087.3,3086.9,0.91806101]
[1768025103617,0.002,3087.3,3087.0,1.83808666]
[1768025103818,0.002,3087.3,3087.1,0.90020338]
[1768025104551,0.002,3087.3,3087.2,0.12958382]
[1768025111559,0.00254658,3087.6,3087.2,0.12958382]
[1768025111765,0.00254658,3087.6,3087.2,1.0297872]
[1768025112260,0.00254658,3087.6,3087.2,0.90020338]
[1768025112566,0.00254658,3087.6,3087.3,0.12958214]
[1768025123080,0.99824492,3087.6,3087.3,0.12958214]
[1768025125777,0.99569834,3087.5,3086.7,1.15520338]
[1768025125975,0.99569834,3087.4,3086.7,0.255]
[1768025126181,0.99569834,3087.4,3086.7,1.22697945]
[1768025126478,0.99569834,3087.4,3086.7,0.255]
[1768025127456,4.23476936,3087.4,3086.7,0.255]
[1768025127663,0.99569834,3087.3,3086.7,0.255]
[1768025127948,0.99569834,3087.2,3086.7,0.255]
[1768025129969,0.99569834,3087.2,3087.0,0.001]
[1768025131389,0.99569834,3087.1,3087.0,0.001]
[1768025131573,0.99569834,3087.1,3086.5,0.00180872]
[1768025131952,0.99569834,3087.0,3086.5,0.00180872]
[1768025132151,0.99569834,3086.9,3086.5,0.00180872]
[1768025134190,0.96370554,3086.7,3086.5,0.00180872]
[1768025134391,0.96370554,3086.7,3085.9,0.001]
[1768025137264,0.96370554,3086.6,3085.9,0.001]
[1768025139576,0.96370554,3086.6,3085.9,0.99415773]
[1768025140768,0.00080872,3086.9,3086.0,0.99315773]
[1768025141285,3.24030562,3086.9,3086.0,0.99315773]
[1768025141485,4.20401116,3086.9,3086.0,0.99315773]
[1768025141795,4.20401116,3086.9,3086.2,0.001]
[1768025143700,0.96451426,3086.9,3086.2,0.001]
[1768025143878,1.83156778,3086.9,3086.2,0.001]
[1768025144078,0.96370554,3086.8,3086.2,0.001]
[1768025149632,0.00080872,3086.9,3086.2,0.99415773]
[1768025149953,0.00080872,3086.9,3086.4,0.99315773]
[1768025150283,0.00080872,3086.9,3086.5,0.99315773]
[1768025153894,4.15896999,3087.3,3086.5,0.99396653]
[1768025154232,0.002,3086.9,3086.5,0.99396653]
[1768025162259,0.92105782,3086.9,3086.5,0.0008088]
[1768025166148,0.002,3086.6,3086.5,0.0008088]
[1768025192640,0.002,3086.6,3086.5,0.96235387]
[1768025194874,0.002,3086.6,3086.5,0.0008088]
[1768025195175,0.002,3086.9,3086.5,0.95069344]
[1768025198797,0.002,3086.9,3086.5,4.19050665]
[1768025201697,0.002,3086.6,3086.5,4.19050665]
[1768025202004,0.91378001,3087.3,3086.5,3.24062201]
[1768025205805,0.91378001,3087.3,3086.5,4.19050665]
[1768025207207,0.91378001,3087.3,3086.5,0.95069344]
[1768025207407,0.91496143,3087.2,3086.5,0.95069344]
[1768025209908,0.91496143,3087.2,3086.5,4.19060162]
[1768025210207,0.91496143,3087.2,3086.5,0.95069344]
[1768025211407,0.91496143,3087.2,3086.5,4.19060756]
[1768025214118,0.002,3086.9,3086.5,4.19060756]
[1768025222426,0.002,3086.9,3086.5,0.95069344]
[1768025222801,0.002,3086.9,3086.5,4.19060625]
[1768025223900,0.002,3086.9,3086.5,0.95069344]
[1768025225049,0.002,3086.9,3086.5,4.19060562]
[1768025225895,0.002,3086.9,3086.5,0.95069344]
[1768025226091,0.002,3086.9,3086.5,4.19058331]
[1768025226291,0.002,3086.9,3086.5,0.95069344]
[1768025226728,0.002,3086.9,3086.5,4.19057773]
[1768025227036,0.002,3086.9,3086.8,0.001]
[1768025231539,0.91224352,3087.5,3086.8,0.001]
[1768025232036,0.91224352,3087.5,3086.8,0.256]
[1768025233738,0.00254658,3087.6,3086.9,0.94578451]
[1768025234240,0.9147901,3087.6,3086.9,0.94578451]
[1768025238753,0.002,3087.3,3086.9,0.94578451]
[1768025244159,0.002,3087.3,3086.8,0.256]
[1768025244324,0.002,3087.3,3086.8,1.20178451]
[1768025248335,0.002,3087.3,3086.8,0.256]
[1768025250357,0.002,3087.3,3087.1,0.001]
[1768025253765,0.96218438,3087.3,3087.1,0.001]
[1768025255877,0.96018438,3087.2,3087.1,0.001]
[1768025268384,0.002,3087.3,3087.1,0.001]
[1768025270983,0.99884813,3087.3,3087.1,0.001]
[1768025275683,0.002,3087.3,3087.1,0.001]
[1768025281290,0.99684813,3087.2,3086.5,0.0008088]
[1768025281498,0.99684813,3086.9,3086.5,0.0008088]
[1768025283484,4.1504572,3086.8,3086.5,0.0008088]
[1768025283685,0.41504572,3086.7,3086.5,0.0008088]
[1768025287892,4.15053777,3086.8,3086.5,0.0008088]
[1768025288092,0.91085632,3086.9,3086.5,0.0008088]
[1768025288297,0.91085632,3087.2,3086.5,3.4677785]
[1768025288468,0.91085632,3087.2,3086.5,4.42206098]
[1768025289797,0.91085632,3087.2,3086.5,0.0008088]
[1768025291098,0.002,3087.3,3086.6,0.95428248]
[1768025294974,0.002,3087.3,3086.7,0.95428248]
[1768025297719,0.002,3087.3,3086.9,0.95428248]
[1768025298203,3.30424994,3087.6,3086.9,0.95428248]
[1768025304402,4.21510626,3087.6,3086.9,0.95428248]
[1768025310509,4.21510626,3087.6,3087.2,0.001]
[1768025318336,0.91628911,3087.5,3087.2,0.001]
[1768025318629,0.91628911,3087.5,3086.8,0.001]
[1768025318816,0.91628911,3087.4,3086.8,0.001]
[1768025321423,3.23891643,3087.5,3086.8,0.001]
[1768025321626,0.91628911,3087.4,3086.8,0.001]
[1768025322721,0.91628911,3087.4,3087.1,0.001]
[1768025323289,3.23891643,3087.5,3087.1,0.001]
[1768025325008,0.91684161,3087.6,3087.1,0.001]
[1768025325009,4.15565148,3087.6,3087.1,0.001]
[1768025328231,0.91628911,3087.5,3087.1,0.001]
[1768025331597,3.23936237,3087.6,3087.1,0.001]
[1768025331943,4.0191887,3087.6,3087.1,0.001]
[1768025335046,0.002,3087.2,3087.1,0.001]
[1768025373074,0.002,3087.5,3087.1,0.93424742]
[1768025373947,0.002,3087.5,3087.1,0.001]
[1768025378085,0.92821661,3087.5,3087.1,0.001]
[1768025380688,0.002,3087.5,3087.1,0.001]
[1768025382789,0.002,3087.2,3087.1,0.001]
[1768025427841,0.002,3087.5,3087.1,0.001]
[1768025427842,3.95e-06,3087.5,3087.1,0.001]
[1768025429948,0.98942085,3087.7,3087.2,0.00086533]
[1768025441731,0.98942085,3087.7,3087.5,0.001]
[1768025441928,4.65764867,3087.7,3087.5,0.001]
[1768025442800,1.41898572,3087.7,3087.5,0.001]
[1768025442999,0.43012526,3087.7,3087.5,0.001]